[Event "Silves Open 2025"]
[Site "Fissul"]
[Date "2025.03.03"]
[Round "2.22"]
[White "Prata, Jose"]
[Black "Li, Leon"]
[Result "1-0"]
[Annotator "NA COMBH"]
[ECO "C27"]
[WhiteElo "1839"]
[BlackElo "1627"]
[PlyCount "113"]
[EventDate "2025.03.03"]
[EventType "swiss"]
[EventCountry "POR"]
[SourceTitle "playchess.com"]
[Source "ChessBase"]
[SourceQuality "1"]
[TimeControl "5400+30"]

1. e4 {[%emt 0:00:02]} e5 {[%emt 0:00:24]} 2. Nc3 {[%emt 0:00:07]} Nf6 {[%emt 0:00:32]} 3. Bc4 {[%emt 0:00:05]} Bc5 {[%emt 0:00:52]} 4. d3 {[%emt 0:00:08]} d6 {[%emt 0:01:09]} 5. Na4 {[%emt 0:01:19]} Bb6 {[%emt 0:01:38]} 6. Nxb6 {[%emt 0:00:13]} axb6 {[%emt 0:00:45]} 7. f4 {[%emt 0:00:13]} exf4 {[%emt 0:03:35]} 8. Bxf4 {[%emt 0:00:13]} Be6 {[%emt 0:01:13]} 9. Bxe6 {[%emt 0:00:29]} fxe6 {[%emt 0:00:22]} 10. Nf3 {[%emt 0:00:13]} e5 {[%emt 0:02:16]} 11. Bg5 {[%emt 0:00:32]} O-O {[%emt 0:01:24]} 12. O-O {[%emt 0:00:18]} Nbd7 {[%emt 0:02:48]} 13. h3 {[%emt 0:02:46]} h6 {[%emt 0:02:27]} 14. Be3 {[%emt 0:01:17]} d5 {[%emt 0:02:06]} 15. exd5 {[%emt 0:00:08]} Nxd5 {[%emt 0:01:13]} 16. Qe2 {[%emt 0:02:01]} Qe7 {[%emt 0:01:18]} 17. a3 {[%emt 0:01:28]} Rae8 {[%emt 0:02:02]} 18. Qd2 {[%emt 0:02:33]} Kh7 {[%emt 0:01:34]} 19. Rae1 {[%emt 0:01:47]} Qd6 {[%emt 0:02:03]} 20. c4 {[%emt 0:05:03]} Nxe3 {[%emt 0:01:45]} 21. Qxe3 {[%emt 0:00:37]} Qc5 {[%emt 0:02:55]} 22. b4 {[%emt 0:02:16]} Qxe3+ {[%emt 0:02:30]} 23. Rxe3 {[%emt 0:05:05]} Rf6 {[%emt 0:01:02]} 24. Rfe1 {[%emt 0:01:45]} Rfe6 {[%emt 0:00:57]} 25. Nd4 {[%emt 0:00:21]} Rf6 {[%emt 0:01:28]} 26. Nf3 {[%emt 0:03:29]} Rfe6 {[%emt 0:00:19]} 27. d4 {[%emt 0:01:16]} e4 {[%emt 0:01:11]} 28. d5 {[%emt 0:00:26]} R6e7 {[%emt 0:00:44]} 29. Nd4 {[%emt 0:01:21]} Re5 {[%emt 0:00:40]} 30. Ne6 {[%emt 0:03:39]} Rc8 {[%emt 0:07:01]} 31. Rxe4 {[%emt 0:00:11]} Rxe4 {[%emt 0:00:16]} 32. Rxe4 {[%emt 0:00:02]} Nf6 {[%emt 0:00:42]} 33. Re1 {[%emt 0:03:11]} b5 {[%emt 0:01:37]} 34. cxb5 {[%emt 0:01:25]} Nxd5 {[%emt 0:00:25]} 35. Rd1 {[%emt 0:02:42]} Nc3 {[%emt 0:01:12]} 36. Rd7 {[%emt 0:00:12]} Nxb5 {[%emt 0:00:38]} 37. Rxg7+ {[%emt 0:00:33]} Kh8 {[%emt 0:00:12]} 38. a4 {[%emt 0:00:18]} Nc3 {[%emt 0:00:28]} 39. Rxc7 {[%emt 0:03:55]} Rxc7 {[%emt 0:00:19]} 40. Nxc7 {[%emt 0:00:02]} Nxa4 {[%emt 0:00:15]} 41. Nd5 {[%emt 0:00:55]} Kg7 {[%emt 0:00:35]} 42. Kf2 {[%emt 0:00:02]} Kf7 {[%emt 0:00:39]} 43. Ke3 {[%emt 0:00:14]} Ke6 {[%emt 0:00:24]} 44. Kd4 {[%emt 0:00:26]} Kd6 {[%emt 0:00:23]} 45. Ne3 {[%emt 0:01:36]} Kc6 {[%emt 0:01:02]} 46. g4 {[%emt 0:01:13]} Kb5 {[%emt 0:00:45]} 47. Nd5 {[%emt 0:02:34]} Nb2 {[%emt 0:53:55]} 48. h4 {[%emt 0:01:18]} Nc4 {[%emt 0:00:00]} 49. g5 {[%emt 0:01:14]} Nd2 {[%emt 0:00:00]} 50. gxh6 {[%emt 0:02:04]} Nf3+ {[%emt 0:00:00]} 51. Ke4 {[%emt 0:00:55]} Nxh4 {[%emt 0:00:00]} 52. Nf4 {[%emt 0:00:25]} Kxb4 {[%emt 0:00:00]} 53. h7 {[%emt 0:00:06]} Ka3 {[%emt 0:00:00]} 54. h8=Q {[%emt 0:00:12]} b5 {[%emt 0:00:00]} 55. Qc3+ {[%emt 0:00:48]} Ka2 {[%emt 0:00:00]} 56. Nd3 {[%emt 0:00:14]} Kb1 {[%emt 0:00:00]} 57. Qb2# {[%emt 0:51:03]} 1-0

[Event "Silves Open 2025"]
[Site "Fissul"]
[Date "2025.03.03"]
[Round "2.23"]
[White "Ruiz Esteban, Ruben"]
[Black "De Kruif, Kees"]
[Result "0-1"]
[Annotator "NA COMBH"]
[ECO "B82"]
[WhiteElo "1655"]
[BlackElo "1857"]
[PlyCount "74"]
[EventDate "2025.03.03"]
[EventType "swiss"]
[EventCountry "POR"]
[SourceTitle "playchess.com"]
[Source "ChessBase"]
[SourceQuality "1"]
[TimeControl "5400+30"]

1. e4 {[%emt 1:31:00]} c5 {[%emt 1:31:00]} 2. Nf3 {[%emt 0:00:30]} d6 {[%emt 0:00:30]} 3. d4 {[%emt 0:00:30]} cxd4 {[%emt 0:00:30]} 4. Nxd4 {[%emt 0:00:30]} Nf6 5. Nc3 {[%emt 0:00:30]} a6 6. f4 {[%emt 0:00:30]} e6 {[%emt 0:01:30]} 7. Qf3 {[%emt 0:00:30]} Nc6 {[%emt 0:00:30]} 8. Be3 {[%emt 0:00:30]} Qc7 {[%emt 0:00:30]} 9. g4 {[%emt 0:00:30]} Nxd4 {[%emt 0:00:30]} 10. Bxd4 {[%emt 0:00:30]} e5 {[%emt 0:00:30]} 11. Be3 {[%emt 0:00:30]} Bxg4 {[%emt 0:00:30]} 12. Qf2 {[%emt 0:00:30]} Rc8 {[%emt 0:00:30]} 13. Be2 {[%emt 0:00:30]} b5 {[%emt 0:00:30]} 14. a3 {[%emt 0:00:30]} Be7 {[%emt 0:00:30]} 15. Rg1 {[%emt 0:00:30]} Bxe2 {[%emt 0:00:30]} 16. Qxe2 {[%emt 0:00:30]} g6 {[%emt 0:00:30]} 17. O-O-O {[%emt 0:00:30]} Qc4 {[%emt 0:00:30]} 18. Qd3 {[%emt 0:00:30]} O-O {[%emt 0:00:30]} 19. fxe5 {[%emt 0:00:30]} dxe5 {[%emt 0:00:30]} 20. Qxc4 {[%emt 0:00:30]} Rxc4 {[%emt 0:00:30]} 21. Bg5 {[%emt 0:00:30]} Re8 {[%emt 0:00:30]} 22. Bxf6 {[%emt 0:00:30]} Bxf6 {[%emt 0:00:30]} 23. Rd6 {[%emt 0:00:30]} Re6 {[%emt 0:00:30]} 24. Rxe6 {[%emt 0:00:30]} fxe6 {[%emt 0:00:30]} 25. Kd2 {[%emt 0:00:30]} Be7 {[%emt 0:00:30]} 26. Rg3 {[%emt 0:00:30]} Kg7 {[%emt 0:00:30]} 27. Rd3 {[%emt 0:00:30]} h5 {[%emt 0:00:30]} 28. Rd7 {[%emt 0:00:30]} Rd4+ {[%emt 0:00:30]} 29. Rxd4 {[%emt 0:00:30]} exd4 {[%emt 0:00:30]} 30. Ne2 {[%emt 0:00:30]} e5 {[%emt 0:00:30]} 31. Ng1 {[%emt 0:00:30]} g5 {[%emt 0:00:30]} 32. Ke2 {[%emt 0:00:30]} g4 {[%emt 0:00:30]} 33. h3 {[%emt 0:00:30]} Kg6 {[%emt 0:00:30]} 34. Kf2 {[%emt 0:00:30]} Bg5 {[%emt 0:00:30]} 35. b3 {[%emt 0:00:30]} Be3+ {[%emt 0:00:30]} 36. Kg2 {[%emt 0:00:30]} Bxg1 {[%emt 0:00:30]} 37. Kxg1 {[%emt 0:00:30]} Kg5 {[%emt 0:00:30]} 0-1

[Event "Silves Open 2025"]
[Site "Fissul"]
[Date "2025.03.03"]
[Round "2.25"]
[White "Kuegel, Tobias"]
[Black "Breitkopf, Ilian"]
[Result "1-0"]
[Annotator "TA"]
[ECO "C20"]
[WhiteElo "2423"]
[BlackElo "1671"]
[PlyCount "103"]
[EventDate "2025.03.03"]
[EventType "swiss"]
[EventCountry "POR"]
[SourceTitle "playchess.com"]
[Source "ChessBase"]
[SourceQuality "1"]
[TimeControl "5400+30"]

{[%evp 9,103,-17,-11,-9,-11,-4,18,23,123,126,115,112,120,113,130,130,175,119,127,134,138,127,208,115,135,119,139,114,150,128,160,160,158,137,176,168,235,233,233,242,229,217,248,261,320,324,319,276,301,281,340,322,372,373,365,341,434,416,500,539,519,473,489,397,485,458,861,656,959,811,930,776,29962,29958,29965,29967,29978,29982,29974,29972,29983,29984,29986,29987,29987,29988,29989,29990,29990,29991,29992,29993,29993,29993,29993,29994]} 1. e4 e5 2. Bb5 c6 3. Ba4 Nf6 4. d3 d5 5. exd5 b5 6. Bb3 {C20: 1 e4 e5: Unusual White second moves.} cxd5 7. Bg5 $146 (7. Qe2 Nc6 8. Nc3 Be7 9. Nf3 O-O 10. Nxe5 Nxe5 11. Qxe5 Bb4 12. O-O Bd6 13. Qg5 {1-0 Ferreira,A (2221)-Glosehoff,O Internet Section 15-B blitz 2003 (1)}) 7... Bb7 8. Nf3 {The position is equal.} Qd6 {[#]} (8... Bb4+ $11 {keeps the balance.} 9. c3 Bd6) 9. O-O $1 $16 {[%cal Of3e5]} Be7 10. Re1 Nbd7 {[#]} 11. Nxe5 $1 O-O (11... Nxe5 12. Bf4) 12. d4 {White is more active.} Rfe8 13. Nd2 (13. Nc3 $18) 13... h6 14. Bf4 {[%cal Oe5g6]} Qb6 15. c3 Nf8 (15... Nxe5 $16 16. Bxe5 (16. dxe5 Nd7 $16) 16... Bf8) 16. Ng4 (16. a4 $18) 16... Ng6 17. Bg3 a5 18. Nxf6+ Qxf6 19. a3 Nf4 20. Nf1 Rad8 21. Qd2 Ng6 22. Ne3 Bd6 (22... Qc6 {might work better.} 23. f4 Qc7) 23. Bxd5 $18 {[%cal Bb3d5,Bd5b7,Bb7e4][%mdl 32]} (23. Nxd5 Rxe1+ 24. Rxe1 Bxd5 25. Bxd5 Bxg3 26. Bxf7+ Qxf7 $15) 23... Rxe3 24. Bxb7 Rxe1+ 25. Rxe1 Bxg3 26. hxg3 Kf8 27. Qe2 Qb6 28. Be4 Re8 29. Qf1 Qe6 30. Re3 (30. Qxb5 f5 31. f3 (31. Qxf5+ $2 Qxf5 32. Bxf5 Rxe1+ 33. Kh2 Ne7 $19) 31... fxe4 32. Rxe4 Qc8 33. Rxe8+ (33. Qxa5 Rxe4 34. fxe4 Ne7 $18) 33... Qxe8 34. Qxa5 Ne7 $16) 30... Qb3 31. Bxg6 fxg6 32. Qe2 (32. Rxe8+ Kxe8 33. Qe2+ Kd8 $18) 32... Rxe3 33. fxe3 {[%cal Bf2e3,Be3e4,Be4e5][%mdl 4128] Endgame KQ-KQ. White is two pawns up.} ({And not} 33. Qxe3 Qd1+ 34. Kh2 Qh5+ 35. Kg1 Qd1+ 36. Kh2 Qh5+ 37. Kg1 Qd1+ $11) 33... b4 34. axb4 axb4 35. e4 Ke7 36. Qd2 Qe6 37. e5 ({Don't take} 37. cxb4 Qxe4 38. b5 Qb1+ 39. Kh2 Qf5 40. Qb4+ Kd7) 37... b3 (37... bxc3 $142 38. bxc3 (38. Qxc3 g5 $18) 38... Qg4) 38. Qd1 Qd5 39. Kh2 {Qf3 would now be deadly.} Kf7 40. Qf3+ Qxf3 41. gxf3 {KP-KP. White is two pawns up. White mates.} Ke6 42. f4 Kd5 43. Kg2 Ke6 44. Kf3 Kf5 45. c4 {[%cal Bc3c4,Bc4c5,Bc5c6][%mdl 32]} Ke6 46. d5+ Kd7 47. c5 Ke7 48. c6 Kd8 49. d6 Kc8 50. e6 Kd8 51. Kg4 h5+ 52. Kg5 {Weighted Error Value: White=0.23 (precise) /Black=0.65  Mistake:       	White=2     	Black=4      Inaccurate:     	---       	Black=3      OK:         	White=14    	Black=7      Best:        	White=1     	Black=1      Strong:       	White=1     	---} 1-0

[Event "Silves Open 2025"]
[Site "Fissul"]
[Date "2025.03.03"]
[Round "2.27"]
[White "Santos, Antonio P"]
[Black "Goncalves, Nuno Filipe Pocinho"]
[Result "1-0"]
[Annotator "TA"]
[ECO "A43"]
[WhiteElo "2209"]
[BlackElo "1731"]
[PlyCount "65"]
[EventDate "2025.03.03"]
[EventType "swiss"]
[EventCountry "POR"]
[SourceTitle "playchess.com"]
[Source "ChessBase"]
[SourceQuality "1"]
[TimeControl "5400+30"]

{[%evp 9,64,83,90,64,85,66,89,62,63,72,63,35,70,74,110,69,63,57,60,40,72,75,227,230,229,235,408,410,398,400,468,450,631,602,587,497,965,966,913,635,889,907,894,876,1023,1044,1178,1133,1677,1659,1645,1640,29997,29978,29998,29999,29999]} 1. d4 {[%emt 0:00:03]} c5 {[%emt 0:03:00]} 2. d5 {[%emt 0:00:30]} e6 {[%emt 0:00:40]} 3. c4 {[%emt 0:00:02]} a6 {[%emt 0:01:12]} 4. e4 {[%emt 0:05:50]} g6 {[%emt 0:00:30]} 5. Nf3 {[%emt 0:00:30]} Bg7 $146 {[%emt 0:00:30]} (5... exd5 6. cxd5 d6 7. Be2 Bg7 8. h3 Nf6 9. Nc3 O-O 10. O-O Nbd7 11. Rb1 b5 {0-1 Major,B (1235)-Burton,S (1632) BCCA/Brz/2021}) 6. Bd3 {[%emt 0:00:30] A43: Schmid Benoni.} d6 {[%emt 0:00:30]} 7. O-O {[%emt 0:00:30]} Nd7 {[%emt 0:08:40]} 8. dxe6 {[%emt 0:30:39] White is better.} fxe6 {[%emt 0:00:30]} 9. Nc3 {[%emt 0:00:30]} Ne7 {[%emt 0:06:06]} 10. Bf4 {[%emt 0:26:11]} Qc7 {[%emt 0:00:30]} 11. Bc2 $36 {[%mdl 2048] White is in control. White is more active.} Ne5 {[%emt 0:00:30]} 12. Bxe5 {[%emt 0:01:00]} dxe5 {[%emt 0:00:30]} 13. Ba4+ {[%emt 0:00:30]} Nc6 $1 {[%emt 0:00:30]} 14. Qd2 {[%emt 0:00:30]} O-O {[%emt 0:00:30]} 15. Bxc6 {[%emt 0:00:30]} bxc6 {[%emt 0:00:30] [#] This costs Black the game.} (15... Qxc6 $16 16. Rfd1 Bf6) 16. Rad1 $18 {[%emt 0:00:30]} Qe7 {[%emt 0:00:30]} 17. Qd6 {[%emt 0:00:30]} Rf7 {[%emt 0:00:30]} (17... Ra7 18. Qxe7 (18. Nxe5 $2 {loses.} Qxd6 19. Rxd6 Bxe5 $19) (18. Qxc6 g5 $18) 18... Rxe7) 18. Qxe7 {[%emt 0:00:30]} ({Weaker is} 18. Qxc6 Rb8 19. b3 h6 $18) 18... Rxe7 {[%emt 0:00:30]} 19. Rd8+ {[%emt 0:00:30]} Bf8 {[%emt 0:00:30]} 20. Rfd1 {[%emt 0:00:30] Inhibits Rd7.} Kf7 {[%emt 0:00:30]} (20... Kg7 $142 21. Na4 (21. Nxe5 Rc7 $18) 21... Rb7 22. Nxe5 Be7) 21. Nxe5+ {[%emt 0:00:30]} Kg7 {[%emt 0:00:30]} 22. Na4 {[%emt 0:00:30][%cal Bc3a4,Ba4b6,Bb6d7][%mdl 32]} Rc7 {[%emt 0:00:30]} (22... Rb7 $142 23. Re8 (23. Nxc6 Rc7 $18) 23... Be7) 23. Nb6 {[%emt 0:00:30]} Rb8 {[%emt 0:00:30]} 24. Nbd7 {[%emt 0:00:30]} Be7 {[%emt 0:00:30]} 25. Nxb8 {[%emt 0:00:30] A dynamic duo of knights.} Bxd8 {[%emt 0:00:30]} 26. Rxd8 {[%emt 0:00:30]} Kf6 {[%emt 0:00:30]} 27. f4 {[%emt 0:00:30]} Bb7 {[%emt 0:00:30]} 28. Rf8+ {[%emt 0:00:30]} Kg7 {[%emt 0:00:30]} 29. Nbd7 {[%emt 0:00:30] [#] Strongly threatening Rf7+.} Bc8 {[%emt 0:00:30]} 30. Rf7+ {[%emt 0:00:30]} Kh6 {[%emt 0:00:30]} 31. g4 {[%emt 0:00:30][%cal Bg2g4,Bg4g5][%mdl 32] White mates.} Bxd7 {[%emt 0:00:30]} 32. g5+ {[%emt 0:00:30]} Kh5 {[%emt 0:00:30]} 33. Rxh7# {[%emt 0:30:45] Weighted Error Value: White=0.26 (precise) /Black=1.05  Mistake:       	---       	Black=3      Inaccurate:     	White=3     	Black=3      OK:         	White=8     	Black=3      Best:        	White=1     	---        Strong:       	---       	Black=1} 1-0

[Event "Silves Open 2025"]
[Site "Fissul"]
[Date "2025.03.03"]
[Round "2.28"]
[White "Van Ree, Thailo"]
[Black "Custodio, Dinis"]
[Result "1-0"]
[Annotator "NA COMBH"]
[ECO "D07"]
[WhiteElo "1881"]
[BlackElo "1582"]
[PlyCount "49"]
[EventDate "2025.03.03"]
[EventType "swiss"]
[EventCountry "POR"]
[SourceTitle "playchess.com"]
[Source "ChessBase"]
[SourceQuality "1"]
[TimeControl "5400+30"]

1. d4 {[%emt 0:00:04]} d5 {[%emt 0:02:20]} 2. Nf3 {[%emt 0:00:15]} Nc6 {[%emt 0:04:19]} 3. c4 {[%emt 0:00:25]} Nf6 {[%emt 0:01:06]} 4. Nc3 {[%emt 0:00:19]} Bg4 {[%emt 0:01:17]} 5. cxd5 {[%emt 0:05:42]} Bxf3 {[%emt 0:02:09]} 6. gxf3 {[%emt 0:00:26]} Nb4 {[%emt 0:02:09]} 7. Qa4+ {[%emt 0:00:21]} Qd7 {[%emt 0:01:42]} 8. Qxb4 {[%emt 0:00:07]} b6 {[%emt 0:00:23]} 9. e4 {[%emt 0:02:23]} e6 {[%emt 0:01:24]} 10. dxe6 {[%emt 0:00:01]} Bxb4 {[%emt 0:01:27]} 11. exd7+ {[%emt 0:00:04]} Nxd7 {[%emt 0:00:24]} 12. Bb5 {[%emt 0:00:39]} O-O-O {[%emt 0:01:13]} 13. a3 {[%emt 0:00:15]} Be7 {[%emt 0:00:55]} 14. Nd5 {[%emt 0:00:47]} Bf6 {[%emt 0:01:22]} 15. Be3 {[%emt 0:05:40]} Rde8 {[%emt 0:04:32]} 16. Rc1 {[%emt 0:03:04]} Bd8 {[%emt 0:01:17]} 17. Nxc7 {[%emt 0:01:10]} Bxc7 {[%emt 1:11:01]} 18. Bf4 {[%emt 1:17:48]} g5 {[%emt 0:00:00]} 19. Bd6 {[%emt 0:00:00]} Rd8 {[%emt 0:00:00]} 20. Rxc7+ {[%emt 0:00:00]} Kb8 {[%emt 0:00:00]} 21. Rxd7+ {[%emt 0:00:00]} Kc8 {[%emt 0:00:00]} 22. Rc7+ {[%emt 0:00:00]} Kb8 {[%emt 0:00:00]} 23. e5 {[%emt 0:00:00]} f6 {[%emt 0:00:00]} 24. Ba6 {[%emt 0:00:00]} fxe5 {[%emt 0:00:00]} 25. Rc8# {[%emt 0:00:00]} 1-0

[Event "Silves Open 2025"]
[Site "Fissul"]
[Date "2025.03.03"]
[Round "2.29"]
[White "Almeida, Luis Eduardo dos Rei"]
[Black "Ryabukhina, Veronika"]
[Result "0-1"]
[Annotator "NA COMBH"]
[ECO "B13"]
[WhiteElo "1841"]
[BlackElo "1880"]
[PlyCount "52"]
[EventDate "2025.03.03"]
[EventType "swiss"]
[EventCountry "POR"]
[SourceTitle "playchess.com"]
[Source "ChessBase"]
[SourceQuality "1"]
[TimeControl "5400+30"]

1. e4 {[%emt 0:00:05]} c6 {[%emt 0:00:12]} 2. d4 {[%emt 0:00:05]} d5 {[%emt 0:00:07]} 3. exd5 {[%emt 0:00:05]} cxd5 {[%emt 0:00:08]} 4. Bd3 {[%emt 0:00:04]} Nf6 {[%emt 0:00:17]} 5. c3 {[%emt 0:00:09]} g6 {[%emt 0:02:20]} 6. Nf3 {[%emt 0:00:17]} Bg7 {[%emt 0:00:13]} 7. O-O {[%emt 0:06:23]} O-O {[%emt 0:01:08]} 8. Be3 {[%emt 0:04:36]} Nc6 {[%emt 0:01:15]} 9. h3 {[%emt 0:02:03]} b6 {[%emt 0:21:06]} 10. Qc1 {[%emt 0:05:14]} Bb7 {[%emt 0:00:55]} 11. Re1 {[%emt 0:09:13]} Rc8 {[%emt 0:01:42]} 12. a3 {[%emt 0:11:35]} Na5 {[%emt 0:05:11]} 13. Qc2 {[%emt 0:05:29]} Nc4 {[%emt 0:02:19]} 14. Nbd2 {[%emt 0:07:33]} Qc7 {[%emt 0:06:38]} 15. Bg5 {[%emt 0:18:33]} e6 {[%emt 0:11:21]} 16. Bxf6 {[%emt 0:04:34]} Bxf6 {[%emt 0:00:09]} 17. Nxc4 {[%emt 0:00:25]} dxc4 {[%emt 0:00:13]} 18. Be4 {[%emt 0:00:16]} Bd5 {[%emt 0:02:34]} 19. Bxd5 {[%emt 0:00:45]} exd5 {[%emt 0:00:08]} 20. Re2 {[%emt 0:02:54]} Qd6 {[%emt 0:01:23]} 21. Rae1 {[%emt 0:02:00]} b5 {[%emt 0:00:43]} 22. Qd2 {[%emt 0:08:42]} a5 {[%emt 0:02:58]} 23. Ne5 {[%emt 0:03:48]} h5 {[%emt 0:08:50]} 24. Qf4 {[%emt 0:02:55]} Bg7 {[%emt 0:02:45]} 25. Nxg6 {[%emt 0:00:39]} Qxg6 {[%emt 0:00:21]} 26. Re3 {[%emt 0:00:23]} Bh6 {[%emt 0:02:20]} 0-1

[Event "Silves Open 2025"]
[Site "Fissul"]
[Date "2025.03.03"]
[Round "2.30"]
[White "Tacuchian, Marcelo Oliveira"]
[Black "Almeida, Marta Dias"]
[Result "0-1"]
[Annotator "NA COMBH"]
[ECO "A11"]
[WhiteElo "1620"]
[BlackElo "1790"]
[PlyCount "58"]
[EventDate "2025.03.03"]
[EventType "swiss"]
[EventCountry "POR"]
[SourceTitle "playchess.com"]
[Source "ChessBase"]
[SourceQuality "1"]
[TimeControl "5400+30"]

1. c4 {[%emt 1:31:00]} c6 {[%emt 1:31:00]} 2. g3 {[%emt 0:00:30]} Nf6 {[%emt 0:00:30]} 3. Bg2 {[%emt 0:00:30]} d5 {[%emt 0:00:30]} 4. e3 {[%emt 0:00:30]} e6 {[%emt 0:00:30]} 5. Nf3 {[%emt 0:00:30]} Bd6 {[%emt 0:00:30]} 6. Nc3 {[%emt 0:00:30]} Nbd7 {[%emt 0:00:30]} 7. Qc2 {[%emt 0:00:30]} O-O {[%emt 0:00:30]} 8. cxd5 {[%emt 0:00:30]} exd5 {[%emt 0:00:30]} 9. d4 {[%emt 0:00:30]} Re8 {[%emt 0:00:30]} 10. O-O {[%emt 0:00:30]} Qe7 {[%emt 0:00:30]} 11. b3 {[%emt 0:00:30]} Nf8 {[%emt 0:00:30]} 12. Bb2 {[%emt 0:00:30]} g6 {[%emt 0:00:30]} 13. a4 {[%emt 0:00:30]} a5 {[%emt 0:00:30]} 14. Rfd1 {[%emt 0:00:30]} Bf5 {[%emt 0:00:30]} 15. Qc1 {[%emt 0:00:30]} Ra6 {[%emt 0:00:30]} 16. Ba3 {[%emt 0:00:30]} Rb6 {[%emt 0:00:30]} 17. Bxd6 {[%emt 0:00:30]} Qxd6 {[%emt 0:00:30]} 18. Qb2 {[%emt 0:00:30]} h6 {[%emt 0:00:30]} 19. Rdc1 {[%emt 0:00:30]} Qe6 {[%emt 0:00:30]} 20. Ne2 {[%emt 0:00:30]} g5 {[%emt 0:00:30]} 21. Rc5 {[%emt 0:00:30]} Ne4 {[%emt 0:00:30]} 22. Rxa5 {[%emt 0:00:30]} Nxf2 {[%emt 0:00:30]} 23. Ne5 {[%emt 0:00:30]} Nd3 {[%emt 0:00:30]} 24. Qc3 {[%emt 0:00:30]} Nxe5 {[%emt 0:00:30]} 25. dxe5 {[%emt 0:00:30]} Qxe5 {[%emt 0:00:30]} 26. Nd4 {[%emt 0:00:30]} Ne6 {[%emt 0:00:30]} 27. Rc1 {[%emt 0:00:30]} Nxd4 {[%emt 0:00:30]} 28. exd4 {[%emt 0:00:30]} Qe3+ {[%emt 0:00:30]} 29. Kh1 {[%emt 0:00:30]} Qxc3 {[%emt 0:00:30]} 0-1

[Event "Silves Open 2025"]
[Site "Fissul"]
[Date "2025.03.03"]
[Round "2.32"]
[White "Machado, Manuel Antonio Ribei"]
[Black "Ramos, Vitorino"]
[Result "0-1"]
[Annotator "NA COMBH"]
[ECO "C50"]
[WhiteElo "1796"]
[BlackElo "1792"]
[PlyCount "40"]
[EventDate "2025.03.03"]
[EventType "swiss"]
[EventCountry "POR"]
[SourceTitle "playchess.com"]
[Source "ChessBase"]
[SourceQuality "1"]
[TimeControl "5400+30"]

1. e4 {[%emt 1:31:00]} e5 {[%emt 0:00:58]} 2. Nf3 {[%emt 0:00:00]} Nc6 {[%emt 0:00:19]} 3. Bc4 {[%emt 0:00:00]} f5 {[%emt 0:00:24]} 4. d4 {[%emt 0:00:00]} exd4 {[%emt 0:00:56]} 5. O-O {[%emt 0:00:00]} fxe4 {[%emt 0:01:25]} 6. Nxd4 {[%emt 0:00:00]} Nf6 {[%emt 0:05:50]} 7. Nxc6 {[%emt 0:00:00]} bxc6 {[%emt 0:00:32]} 8. Qe2 {[%emt 0:00:00]} d5 {[%emt 0:02:30]} 9. Bb3 {[%emt 0:00:00]} a5 {[%emt 0:01:04]} 10. Ba4 {[%emt 0:00:00]} Qd7 {[%emt 0:02:11]} 11. Na3 {[%emt 0:00:00]} Ba6 {[%emt 0:02:10]} 12. c4 {[%emt 0:00:00]} Bxa3 {[%emt 0:00:50]} 13. Bb3 {[%emt 0:00:00]} Bc5 {[%emt 0:02:45]} 14. h3 {[%emt 0:00:00]} a4 {[%emt 0:08:54]} 15. Be3 {[%emt 0:00:00]} Bxe3 {[%emt 0:04:17]} 16. fxe3 {[%emt 0:00:00]} axb3 {[%emt 0:00:22]} 17. axb3 {[%emt 0:00:00]} O-O {[%emt 0:01:36]} 18. Rad1 {[%emt 0:00:00]} Qf7 {[%emt 0:02:57]} 19. Rf2 {[%emt 0:00:00]} dxc4 {[%emt 0:06:13]} 20. Qc2 {[%emt 0:00:00]} Bb5 {[%emt 0:03:13]} 0-1

[Event "Silves Open 2025"]
[Site "Fissul"]
[Date "2025.03.03"]
[Round "2.33"]
[White "Mostafa, Hazem Farouk Mahmoud"]
[Black "Opatskyy, Danylo"]
[Result "1/2-1/2"]
[Annotator "NA COMBH"]
[ECO "B20"]
[WhiteElo "1769"]
[BlackElo "1490"]
[PlyCount "59"]
[EventDate "2025.03.03"]
[EventType "swiss"]
[EventCountry "POR"]
[SourceTitle "playchess.com"]
[Source "ChessBase"]
[SourceQuality "1"]
[TimeControl "5400+30"]

1. e4 {[%emt 0:00:02]} c5 {[%emt 0:00:09]} 2. c3 {[%emt 0:00:20]} Nc6 {[%emt 0:00:07]} 3. Bc4 {[%emt 0:00:36]} Nf6 {[%emt 0:00:17]} 4. d3 {[%emt 0:00:48]} e6 {[%emt 0:00:30]} 5. Nf3 {[%emt 0:02:15]} d5 {[%emt 0:00:16]} 6. exd5 {[%emt 0:00:12]} exd5 {[%emt 0:00:08]} 7. Bb5 {[%emt 0:00:13]} Be7 {[%emt 0:00:20]} 8. O-O {[%emt 0:00:15]} O-O {[%emt 0:00:07]} 9. Bxc6 {[%emt 0:00:14]} bxc6 {[%emt 0:00:12]} 10. h3 {[%emt 0:00:10]} h6 {[%emt 0:00:10]} 11. Nbd2 {[%emt 0:00:33]} d4 {[%emt 0:00:24]} 12. c4 {[%emt 0:00:14]} Re8 {[%emt 0:00:20]} 13. Ne5 {[%emt 0:00:32]} Qc7 {[%emt 0:00:15]} 14. Nef3 {[%emt 0:04:08]} Bf5 {[%emt 0:00:22]} 15. Nb3 {[%emt 0:00:17]} Bd6 {[%emt 0:03:49]} 16. Nh4 {[%emt 0:03:30]} Bh7 {[%emt 0:00:35]} 17. f4 {[%emt 0:01:41]} Rad8 {[%emt 0:10:36]} 18. Qf3 {[%emt 0:00:23]} Rd7 {[%emt 0:00:38]} 19. Bd2 {[%emt 0:00:21]} Rde7 {[%emt 0:00:11]} 20. Rf2 {[%emt 0:05:55]} Re3 {[%emt 0:04:46]} 21. Bxe3 {[%emt 0:00:27]} Rxe3 {[%emt 1:16:48]} 22. Qd1 {[%emt 0:03:15]} Rxd3 {[%emt 0:00:00]} 23. Qf1 {[%emt 0:01:09]} Re3 {[%emt 0:00:00]} 24. Rf3 {[%emt 0:00:22]} Bd3 {[%emt 0:00:00]} 25. Qf2 {[%emt 0:00:13]} Re2 {[%emt 0:00:00]} 26. Qg3 {[%emt 0:00:37]} Nh5 {[%emt 0:00:00]} 27. Qg4 {[%emt 0:00:17]} Nf6 {[%emt 0:00:00]} 28. Qg3 {[%emt 0:00:55]} Nh5 {[%emt 0:00:00]} 29. Qg4 {[%emt 0:00:14]} Nf6 {[%emt 0:00:00]} 30. Qg3 {[%emt 0:01:15]} 1/2-1/2